fUST/lending_fUST_20240225
["ID","MTS","AMOUNT","RATE_DAILY","PERIOD"]
[315081598,1708804239441,-50000.0,0.00020719,2]
[315081600,1708804239450,-50000.0,0.00020738,2]
[315081602,1708804239459,-14906.237399,0.00020748,2]
[315081604,1708804239469,-2023.42970921,0.00020748,2]
[315081606,1708804239478,-50000.0,0.00020752,2]
[315081608,1708804239487,-500.0,0.00020943,2]
[315081610,1708804239497,-500.0,0.00020943,2]
[315081612,1708804239506,-210.65235539,0.00020943,2]
[315081614,1708804239516,-500.0,0.00020943,2]
[315081616,1708804239525,-500.0,0.00020943,2]
[315081618,1708804239535,-500.0,0.00020943,2]
[315081620,1708804239544,-500.0,0.00020943,2]
[315081622,1708804239553,-500.0,0.00020943,2]
[315081624,1708804239563,-500.0,0.00020943,2]
[315081626,1708804239573,-500.0,0.00020943,2]
[315081628,1708804239582,-6966.08,0.00020944,2]
[315081630,1708804239592,-558.75,0.00020944,2]
[315081632,1708804239602,-580.0,0.00020964,2]
[315081634,1708804239612,-500.0,0.00020964,2]
[315081636,1708804239621,-500.0,0.00020964,2]
[315081638,1708804239631,-500.0,0.00020964,2]
[315081640,1708804239640,-851.01,0.00020964,2]
[315081642,1708804239648,-3004.44,0.00020964,2]
[315081644,1708804239657,-609.55,0.00020964,2]
[315081646,1708804239667,-4865.2,0.00020964,2]
[315081648,1708804239676,-1228.28,0.00020964,2]
[315081650,1708804239686,-825.79,0.00020964,2]
[315081652,1708804239695,-810.73,0.00020964,2]
[315081654,1708804239704,-1215.55,0.00020964,2]
[315081655,1708804239713,-556.47,0.00020964,2]
[315081658,1708804239723,-5615.22,0.00020964,2]
[315081659,1708804239732,-1307.73,0.00020964,2]
[315081662,1708804239742,-500.0,0.00020964,2]
[315081664,1708804239752,-639.18,0.00020964,2]
[315081679,1708804239895,-500.0,0.00020964,2]
[315081681,1708804239905,-500.0,0.00020964,2]
[315081683,1708804239915,-648.43,0.00020964,2]
[315081685,1708804239924,-4164.94,0.00020964,2]
[315081687,1708804239934,-500.0,0.00020964,2]
[315081690,1708804239944,-549.55,0.00020964,2]
[315081692,1708804239953,-1672.23,0.00020964,2]
[315081694,1708804239963,-500.0,0.00020965,2]
[315081696,1708804239973,-500.0,0.00020965,2]
[315081698,1708804239982,-950.8,0.00020965,2]
[315081699,1708804239991,-1216.87,0.00020965,2]
[315081701,1708804240001,-696.64,0.00020965,2]
[315081703,1708804240011,-1195.42,0.00020965,2]
[315081705,1708804240020,-500.0,0.00020965,2]
[315081707,1708804240029,-166.666666,0.00020973,2]
[315081709,1708804240038,-987.0,0.00021,4]
[315081711,1708804240047,-3214.44555769,0.00021,4]
[315081713,1708804240058,-1585.66810892,0.00021,4]
[315081715,1708804240068,-1581.8531113,0.0002113,2]
[315081717,1708804240077,-50000.0,0.00021194,2]
[315081719,1708804240087,-259.6272426,0.00021205,2]
[315081721,1708804240096,-6966.08,0.00021218,2]
[315081723,1708804240105,-558.75,0.00021218,2]
[315081725,1708804240114,-5095.23171465,0.00021233,2]
[315081727,1708804240123,-1667.39653555,0.00021238,2]
[315081729,1708804240132,-2499.75800915,0.00021238,2]
[315081731,1708804240141,-583.2768688,0.00021238,2]
[315081733,1708804240150,-580.0,0.00021238,2]
[315081735,1708804240161,-156.05410353,0.00021238,2]
[315081737,1708804240170,-500.0,0.00021238,2]
[315081739,1708804240179,-500.0,0.00021238,2]
[315081741,1708804240188,-500.0,0.00021238,2]
[315081743,1708804240197,-851.01,0.00021238,2]
[315081745,1708804240207,-3004.44,0.00021238,2]
[315081747,1708804240216,-609.55,0.00021238,2]
[315081748,1708804240225,-4865.2,0.00021238,2]
[315081750,1708804240234,-1228.28,0.00021238,2]
[315081752,1708804240243,-825.79,0.00021238,2]
[315081754,1708804240252,-810.73,0.00021238,2]
[315081756,1708804240262,-1215.55,0.00021238,2]
[315081758,1708804240271,-556.47,0.00021238,2]
[315081760,1708804240280,-5615.22,0.00021238,2]
[315081762,1708804240290,-1307.73,0.00021238,2]
[315081764,1708804240299,-151.0,0.00021238,2]
[315081765,1708804240307,-500.0,0.00021238,2]
[315081766,1708804240317,-639.18,0.00021238,2]
[315081767,1708804240326,-500.0,0.00021238,2]
[315081768,1708804240337,-500.0,0.00021238,2]
[315081769,1708804240346,-648.43,0.00021238,2]
[315081770,1708804240355,-4164.94,0.00021238,2]
[315081771,1708804240366,-500.0,0.00021238,2]
[315081772,1708804240375,-549.55,0.00021238,2]
[315081773,1708804240383,-1672.23,0.00021238,2]
[315081774,1708804240393,-276.44,0.00021239,2]
[315081775,1708804240401,-500.0,0.00021239,2]
[315081776,1708804240411,-950.8,0.00021239,2]
[315081777,1708804240420,-1216.87,0.00021239,2]
[315081778,1708804240428,-696.64,0.00021239,2]
[315081779,1708804240438,-1195.42,0.00021239,2]
[315081780,1708804240448,-500.0,0.00021239,2]
[315081781,1708804240457,-50000.0,0.00021242,2]
[315081782,1708804240466,-1262.705794,0.00021242,2]
[315081783,1708804240475,-1262.705794,0.00021242,2]
[315081784,1708804240484,-633.09832841,0.00021308,2]
[315081785,1708804240493,-5000.0,0.00021386,2]
[315081786,1708804240502,-166.666666,0.00021422,2]
[315081787,1708804240511,-260.6364286,0.00021452,2]
[315081788,1708804240519,-306.4163504,0.00021452,2]
[315081789,1708804240529,-234.0871682,0.00021452,2]
[315081790,1708804240538,-153.0,0.00021452,2]
[315081791,1708804240547,-153.0,0.00021452,2]
[315081792,1708804240556,-153.0,0.00021452,2]
[315081793,1708804240565,-153.0,0.00021452,2]
[315081794,1708804240573,-153.0,0.00021452,2]
[315081795,1708804240583,-153.0,0.00021452,2]
[315081796,1708804240592,-153.0,0.00021452,2]
[315081797,1708804240601,-153.0,0.00021452,2]
[315081798,1708804240610,-153.0,0.00021452,2]
[315081799,1708804240620,-153.0,0.00021452,2]
[315081800,1708804240629,-153.0,0.00021452,2]
[315081802,1708804240638,-153.0,0.00021452,2]
[315081804,1708804240647,-300.0,0.00021465,2]
[315081805,1708804240656,-7179.98846962,0.00021473,2]
[315081806,1708804240665,-6966.08,0.00021492,2]
[315081807,1708804240673,-558.75,0.00021492,2]
[315081808,1708804240682,-50000.0,0.00021496,2]
[315081809,1708804240691,-580.0,0.00021512,2]
[315081810,1708804240700,-500.0,0.00021512,2]
[315081811,1708804240709,-500.0,0.00021512,2]
[315081812,1708804240717,-500.0,0.00021512,2]
[315081813,1708804240727,-851.01,0.00021512,2]
[315081814,1708804240735,-3004.44,0.00021512,2]
[315081815,1708804240744,-609.55,0.00021512,2]
[315081816,1708804240753,-4865.2,0.00021512,2]
[315081817,1708804240762,-1228.28,0.00021512,2]
[315081818,1708804240771,-825.79,0.00021512,2]
[315081819,1708804240780,-810.73,0.00021512,2]
[315081821,1708804240789,-1215.55,0.00021512,2]
[315081823,1708804240799,-556.47,0.00021512,2]
[315081825,1708804240809,-5615.22,0.00021512,2]
[315081827,1708804240818,-1307.73,0.00021512,2]
[315081829,1708804240827,-500.0,0.00021512,2]
[315081831,1708804240837,-639.18,0.00021512,2]
[315081833,1708804240846,-500.0,0.00021512,2]
[315081835,1708804240856,-500.0,0.00021512,2]
[315081837,1708804240866,-648.43,0.00021512,2]
[315081839,1708804240875,-4164.94,0.00021512,2]
[315081841,1708804240885,-500.0,0.00021512,2]
[315081843,1708804240894,-549.55,0.00021512,2]
[315081845,1708804240903,-1672.23,0.00021512,2]
[315081847,1708804240913,-640.25296123,0.00021513,2]
[315081849,1708804240922,-950.8,0.00021513,2]
[315081851,1708804240931,-1216.87,0.00021513,2]
[315081852,1708804240940,-696.64,0.00021513,2]
[315081855,1708804240950,-1195.42,0.00021513,2]
[315081856,1708804240959,-500.0,0.00021513,2]
[315081858,1708804240969,-5000.0,0.0002154,2]
[315081860,1708804240978,-5000.0,0.00021568,2]
[315081862,1708804240987,-169.642876,0.00021573,2]
[315081864,1708804240997,-5000.0,0.00021573,2]
[315081866,1708804241006,-5000.0,0.00021578,2]
[315081868,1708804241015,-7522.9438998,0.00021653,2]
[315081870,1708804241025,-300.0,0.00021692,2]
[315081872,1708804241034,-5000.0,0.00021693,2]
[315081874,1708804241043,-5000.0,0.00021736,2]
[315081876,1708804241052,-6966.08,0.00021766,2]
[315081878,1708804241061,-558.75,0.00021766,2]
[315081880,1708804241070,-580.0,0.00021786,2]
[315081882,1708804241080,-500.0,0.00021786,2]
[315081884,1708804241088,-208.21,0.00021786,2]
[315081886,1708804241097,-851.01,0.00021786,2]
[315081888,1708804241106,-3004.44,0.00021786,2]
[315081890,1708804241117,-609.55,0.00021786,2]
[315081891,1708804241125,-4865.2,0.00021786,2]
[315081893,1708804241135,-1228.28,0.00021786,2]
[315081895,1708804241144,-825.79,0.00021786,2]
[315081897,1708804241153,-810.73,0.00021786,2]
[315081899,1708804241162,-1215.55,0.00021786,2]
[315081901,1708804241170,-556.47,0.00021786,2]
[315081903,1708804241180,-5615.22,0.00021786,2]
[315081905,1708804241189,-1307.73,0.00021786,2]
[315081907,1708804241198,-500.0,0.00021786,2]
[315081909,1708804241208,-639.18,0.00021786,2]
[315081911,1708804241218,-500.0,0.00021786,2]
[315081913,1708804241227,-500.0,0.00021786,2]
[315081915,1708804241237,-648.43,0.00021786,2]
[315081917,1708804241246,-4164.94,0.00021786,2]
[315081919,1708804241255,-500.0,0.00021786,2]
[315081921,1708804241264,-549.55,0.00021786,2]
[315081923,1708804241273,-1672.23,0.00021786,2]
[315081925,1708804241282,-950.8,0.00021787,2]
[315081927,1708804241291,-1216.87,0.00021787,2]
[315081929,1708804241300,-696.64,0.00021787,2]
[315081931,1708804241309,-1195.42,0.00021787,2]
[315081933,1708804241319,-500.0,0.00021787,2]
[315081935,1708804241328,-5000.0,0.00021847,2]
[315081937,1708804241337,-1581.8531113,0.00021871,2]
[315081939,1708804241346,-153.0,0.0002189,2]
[315081941,1708804241356,-176.617994,0.00021918,2]
[315081943,1708804241368,-1987.8970187,0.00021918,2]
[315081945,1708804241378,-300.0,0.0002192,2]
[315081947,1708804241388,-19888.05476846,0.00021987,2]
[315081949,1708804241397,-4337.84574528,0.00022,2]
[315081951,1708804241406,-1819.11070501,0.00022,2]
[315081953,1708804241416,-160.63613606,0.00022,3]
[315081955,1708804241425,-1016.28511959,0.00022,2]
[315081957,1708804241435,-627.99429575,0.00022,2]
[315081959,1708804241445,-3808.29291955,0.00022,2]
[315081961,1708804241455,-238.07219135,0.00022,3]
[315081962,1708804241464,-257.5157018,0.00022,3]
[315081964,1708804241473,-5000.0,0.00022,2]
[315081966,1708804241482,-195.06762942,0.00022,3]
[315081968,1708804241491,-429.14878471,0.00022,3]
[315081970,1708804241500,-5000.0,0.00022,2]
[315081972,1708804241509,-151.0,0.00022,2]
[315081974,1708804241518,-5000.0,0.00022,2]
[315081976,1708804241527,-6966.08,0.0002204,2]
[315081978,1708804241536,-558.75,0.0002204,2]
[315081980,1708804241545,-73855.41747602,0.00022045,2]
[315081982,1708804241554,-348.346469,0.00022045,2]
[315081984,1708804241563,-348.346469,0.00022045,2]
[315081986,1708804241572,-3408.613553,0.00022045,2]
[315081988,1708804241581,-3408.613553,0.00022045,2]
[315081990,1708804241591,-220.596274,0.00022045,2]
[315081992,1708804241600,-1262.705794,0.00022045,2]
[315081994,1708804241609,-1262.705794,0.00022045,2]
[315081996,1708804241618,-580.0,0.0002206,2]
[315081998,1708804241627,-500.0,0.0002206,2]
[315082000,1708804241636,-851.01,0.0002206,2]
[315082002,1708804241645,-3004.44,0.0002206,2]
[315082004,1708804241654,-609.55,0.0002206,2]
[315082006,1708804241663,-4865.2,0.0002206,2]
[315082008,1708804241672,-1228.28,0.0002206,2]
[315082010,1708804241682,-825.79,0.0002206,2]
[315082011,1708804241690,-810.73,0.0002206,2]
[315082014,1708804241701,-1215.55,0.0002206,2]
[315082015,1708804241710,-556.47,0.0002206,2]
[315082017,1708804241719,-5615.22,0.0002206,2]
[315082019,1708804241729,-1307.73,0.0002206,2]
[315082021,1708804241738,-500.0,0.0002206,2]
[315082023,1708804241748,-639.18,0.0002206,2]
[315082025,1708804241757,-500.0,0.0002206,2]
[315082027,1708804241766,-500.0,0.0002206,2]
[315082029,1708804241776,-648.43,0.0002206,2]
[315082031,1708804241785,-4164.94,0.0002206,2]
[315082033,1708804241795,-500.0,0.0002206,2]
[315082035,1708804241804,-549.55,0.0002206,2]
[315082037,1708804241814,-1672.23,0.0002206,2]
[315082039,1708804241824,-950.8,0.00022061,2]
[315082041,1708804241833,-1216.87,0.00022061,2]
[315082043,1708804241842,-696.64,0.00022061,2]
[315082045,1708804241852,-1195.42,0.00022061,2]
[315082047,1708804241860,-500.0,0.00022061,2]
[315082049,1708804241869,-300.0,0.00022147,2]
[315082051,1708804241879,-50000.0,0.0002218,2]
[315082053,1708804241888,-50000.0,0.0002218,2]
[315082055,1708804241899,-357.553866,0.0002218,2]
[315082057,1708804241908,-357.553866,0.0002218,2]
[315082059,1708804241917,-151.0,0.0002218,2]
[315082061,1708804241926,-151.0,0.0002218,2]
[315082063,1708804241936,-582.0,0.000222,2]
[315082065,1708804241946,-23210.71739679,0.00022215,2]
[315082118,1708804242481,-500.0,0.00020943,2]
[315082120,1708804242490,-500.0,0.00020943,2]
[315082122,1708804242499,-315.27547034,0.00020943,2]
[315082123,1708804242509,-500.0,0.00020943,2]
[315082125,1708804242518,-500.0,0.00020943,2]
[315082127,1708804242528,-500.0,0.00020943,2]
[315082129,1708804242537,-500.0,0.00020943,2]
[315082131,1708804242546,-500.0,0.00020943,2]
[315082133,1708804242555,-258.87650843,0.00020943,2]
[315082135,1708804242567,-241.12349157,0.00020943,2]
[315082137,1708804242576,-500.0,0.00020943,2]
[315082139,1708804242586,-500.0,0.00020943,2]
[315082141,1708804242596,-7117.4905571,0.00022215,2]
[315082149,1708804242662,-19671.79204611,0.00022215,2]
[315082151,1708804242671,-1262.705794,0.00022215,2]
[315082153,1708804242680,-1262.705794,0.00022215,2]
[315082155,1708804242690,-151.0,0.00022215,2]
[315082157,1708804242699,-6685.36923941,0.00022259,2]
[315082159,1708804242712,-3169.08747605,0.00022259,2]
[315082162,1708804242726,-976.12210198,0.00022259,2]
[315082231,1708804243513,-2601.82149288,0.00022259,2]
[315082237,1708804243567,-5193.40288648,0.00022259,2]
[315083800,1708804983779,1375.5606334,0.00018111,2]
[315083801,1708805034570,207.70929,0.00018197,2]
[315083855,1708805236131,-24900.0,0.00018268,2]
[315083856,1708805236153,-7500.5763838,0.00018314,2]
[315083857,1708805236174,-479.07576769,0.000189,2]
[315083858,1708805236196,-11366.57043736,0.00018998,2]
[315083859,1708805236217,-172.45288,0.00019178,2]
[315083860,1708805236238,-167.182793,0.00019178,2]
[315083861,1708805236258,-249.5002275,0.000192,2]
[315083862,1708805236279,-14811.17,0.0001929,3]
[315083863,1708805236301,-530.46,0.00019299,2]
[315083864,1708805236322,-17773.41,0.00019299,3]
[315083865,1708805236342,-503.1637467,0.000193,2]
[315083866,1708805236363,-501.22178081,0.000193,2]
[315083867,1708805236385,-500.0,0.000193,2]
[315083868,1708805236406,-500.0,0.000193,2]
[315083869,1708805236426,-500.0,0.000193,2]
[315083870,1708805236446,-1128.8,0.000193,2]
[315083871,1708805236466,-1000.0,0.000193,2]
[315083872,1708805236486,-500.9168553,0.000193,2]
[315083873,1708805236716,-570.86585573,0.000193,2]
[315083874,1708805236742,-1287.51,0.000193,2]
[315083875,1708805236767,-705.97,0.000193,2]
[315083876,1708805236789,-1240.89,0.000193,2]
[315083877,1708805236810,-212.55926004,0.00019306,2]
[315083878,1708805236830,-295.40221259,0.00019307,2]
[315083879,1708805236852,-4697.79543124,0.00019307,2]
[315083880,1708805236875,-5916.76,0.00019308,2]
[315083881,1708805236895,-500.0,0.00019309,2]
[315083882,1708805236916,-500.0,0.00019309,2]
[315083883,1708805236938,-500.0,0.00019309,2]
[315083884,1708805236960,-500.0,0.00019309,2]
[315083885,1708805236981,-500.0,0.00019309,2]
[315083886,1708805237004,-528.14,0.00019309,2]
[315083887,1708805237030,-500.0,0.00019309,2]
[315083888,1708805237051,-500.0,0.00019309,2]
[315083889,1708805237074,-5039.09,0.00019309,2]
[315083890,1708805237097,-500.0,0.00019309,2]
[315083891,1708805237118,-502.36041731,0.00019309,2]
[315083892,1708805237142,-500.0,0.00019309,2]
[315083893,1708805237163,-257.39822183,0.00019309,2]
[315083894,1708805237186,-500.0,0.00019309,2]
[315083895,1708805237208,-500.0,0.00019309,2]
[315083896,1708805237230,-500.0,0.00019309,2]
[315083897,1708805237252,-500.0,0.00019309,2]
[315083898,1708805237274,-559.13,0.00019309,2]
[315083899,1708805237296,-500.0,0.00019309,2]
[315083900,1708805237316,-500.0,0.00019309,2]
[315083901,1708805237339,-372.370727,0.00019318,2]
[315083902,1708805237360,-840.53547359,0.00019318,2]
[315083903,1708805237386,-198.23363887,0.00019318,2]
[315083904,1708805237407,-617.94,0.00019319,2]
[315083905,1708805237430,-622.9,0.00019319,2]
[315083906,1708805237452,-754.21,0.00019319,2]
[315083907,1708805237476,-599.74,0.00019319,2]
[315083908,1708805237499,-2915.69,0.00019319,2]
[315083909,1708805237522,-500.0,0.00019319,2]
[315083910,1708805237544,-4591.37,0.00019319,2]
[315083911,1708805237565,-1196.4,0.00019319,2]
[315083912,1708805237587,-500.0,0.00019319,2]
[315083913,1708805237607,-500.0,0.0001932,2]
[315083914,1708805237629,-500.0,0.0001932,2]
[315083915,1708805237650,-500.0,0.0001932,2]
[315083916,1708805237676,-614.78,0.0001932,2]
[315083917,1708805237698,-543.68572627,0.0001932,2]
[315083918,1708805237718,-500.0,0.0001932,2]
[315083919,1708805237739,-500.0,0.0001932,2]
[315083920,1708805237761,-241.11026349,0.0001932,2]
[315083921,1708805237781,-237.30620827,0.0001932,2]
[315083922,1708805237802,-358.77000925,0.0001932,2]
[315083923,1708805237822,-500.35101391,0.0001932,2]
[315083924,1708805237844,-500.82063476,0.0001932,2]
[315083925,1708805237865,-500.0,0.0001932,2]
[315083926,1708805237886,-500.0,0.0001932,2]
[315083927,1708805237906,-563.19670523,0.0001932,2]
[315083928,1708805237926,-502.34843304,0.0001932,2]
[315083929,1708805237947,-501.38870417,0.0001932,2]
[315083930,1708805237970,-500.0,0.0001932,2]
[315083931,1708805237991,-500.0,0.0001932,2]
[315083932,1708805238012,-500.87125203,0.0001932,2]
[315083933,1708805238033,-501.65770956,0.0001932,2]
[315083934,1708805238054,-171.73712487,0.0001932,2]
[315083935,1708805238075,-500.0,0.0001932,2]
[315083936,1708805238096,-500.94926945,0.0001932,2]
[315083937,1708805238119,-501.74035335,0.0001932,2]
[315083938,1708805238141,-155.31350748,0.0001932,2]
[315083939,1708805238162,-501.12706915,0.0001932,2]
[315083940,1708805238183,-500.0,0.0001932,2]
[315083941,1708805238204,-500.0,0.0001932,2]
[315083942,1708805238226,-500.0,0.0001932,2]
[315083943,1708805238248,-200.03458746,0.0001932,2]
[315083944,1708805238268,-500.0,0.0001932,2]
[315083945,1708805238289,-501.75068426,0.0001932,2]
[315083946,1708805238311,-500.0,0.0001932,2]
[315083947,1708805238332,-500.0,0.0001932,2]
[315083948,1708805238353,-500.0,0.0001932,2]
[315083949,1708805238374,-500.0,0.0001932,2]
[315083950,1708805238394,-500.0,0.0001932,2]
[315083951,1708805238414,-501.7645456,0.0001932,2]
[315083952,1708805238436,-500.0,0.0001932,2]
[315083953,1708805238459,-500.0,0.0001932,2]
[315083954,1708805238480,-500.0,0.0001932,2]
[315083955,1708805238501,-501.94942343,0.0001932,2]
[315083956,1708805238524,-500.0,0.0001932,2]
[315083957,1708805238549,-501.93487223,0.0001932,2]
[315083958,1708805238569,-500.0,0.0001932,2]
[315083959,1708805238590,-500.0,0.0001932,2]
[315083960,1708805238618,-502.88066657,0.0001932,2]
[315083961,1708805238639,-500.0,0.0001932,2]
[315083962,1708805238661,-357.99725575,0.0001932,2]
[315083963,1708805238686,-163.36782177,0.0001932,2]
[315083964,1708805238708,-182.68877867,0.00019494,2]
[315083965,1708805238730,-530.46,0.00019573,2]
[315083966,1708805238752,-500.0,0.00019574,2]
[315083967,1708805238775,-500.0,0.00019574,2]
[315083968,1708805238795,-1128.8,0.00019574,2]
[315083969,1708805238816,-1287.51,0.00019574,2]
[315083970,1708805238838,-705.97,0.00019574,2]
[315083971,1708805238860,-1240.89,0.00019574,2]
[315083972,1708805238883,-5916.76,0.00019582,2]
[315083973,1708805238904,-500.0,0.00019583,2]
[315083974,1708805238925,-500.0,0.00019583,2]
[315083975,1708805238948,-500.0,0.00019583,2]
[315083976,1708805238971,-500.0,0.00019583,2]
[315083977,1708805238995,-528.14,0.00019583,2]
[315083978,1708805239018,-5039.09,0.00019583,2]
[315083979,1708805239039,-500.0,0.00019583,2]
[315083980,1708805239062,-500.0,0.00019583,2]
[315083981,1708805239084,-500.0,0.00019583,2]
[315083982,1708805239106,-559.13,0.00019583,2]
[315083983,1708805239131,-500.0,0.00019583,2]
[315083984,1708805239153,-617.94,0.00019593,2]
[315083985,1708805239175,-622.9,0.00019593,2]
[315083986,1708805239197,-754.21,0.00019593,2]
[315083987,1708805239219,-599.74,0.00019593,2]
[315083988,1708805239241,-2915.69,0.00019593,2]
[315083989,1708805239267,-4591.37,0.00019593,2]
[315083990,1708805239288,-1196.4,0.00019593,2]
[315083991,1708805239308,-297.62422451,0.00019593,2]
[315083992,1708805239328,-295.01013118,0.00019593,2]
[315083993,1708805239348,-500.0,0.00019593,2]
[315083994,1708805239369,-175.0,0.00019593,2]
[315083995,1708805239392,-500.0,0.00019593,2]
[315083996,1708805239413,-500.0,0.00019593,2]
[315083997,1708805239434,-500.0,0.00019593,2]
[315083998,1708805239454,-265.92281898,0.00019593,2]
[315083999,1708805239474,-500.0,0.00019593,2]
[315084000,1708805239497,-500.0,0.00019593,2]
[315084001,1708805239518,-500.0,0.00019593,2]
[315084002,1708805239538,-500.0,0.00019593,2]
[315084003,1708805239560,-500.0,0.00019593,2]
[315084004,1708805239581,-500.0,0.00019593,2]
[315084005,1708805239602,-500.0,0.00019593,2]
[315084006,1708805239622,-500.0,0.00019593,2]
[315084007,1708805239643,-500.0,0.00019593,2]
[315084008,1708805239668,-500.0,0.00019593,2]
[315084009,1708805239689,-500.0,0.00019593,2]
[315084010,1708805239710,-500.0,0.00019593,2]
[315084011,1708805239731,-500.0,0.00019593,2]
[315084012,1708805239759,-500.0,0.00019593,2]
[315084013,1708805239786,-500.0,0.00019593,2]
[315084014,1708805239924,-500.0,0.00019593,2]
[315084015,1708805239945,-500.0,0.00019593,2]
[315084016,1708805239972,-500.0,0.00019593,2]
[315084017,1708805239994,-500.0,0.00019593,2]
[315084018,1708805240016,-500.0,0.00019593,2]
[315084019,1708805240038,-500.0,0.00019593,2]
[315084020,1708805240061,-500.0,0.00019593,2]
[315084021,1708805240083,-500.0,0.00019593,2]
[315084022,1708805240105,-500.0,0.00019593,2]
[315084023,1708805240128,-500.0,0.00019593,2]
[315084024,1708805240149,-500.0,0.00019593,2]
[315084025,1708805240171,-500.0,0.00019593,2]
[315084026,1708805240194,-500.0,0.00019593,2]
[315084027,1708805240216,-500.0,0.00019593,2]
[315084028,1708805240239,-500.0,0.00019593,2]
[315084029,1708805240261,-500.0,0.00019593,2]
[315084030,1708805240282,-500.0,0.00019593,2]
[315084031,1708805240303,-500.0,0.00019593,2]
[315084032,1708805240325,-500.0,0.00019593,2]
[315084033,1708805240346,-500.0,0.00019593,2]
[315084034,1708805240367,-500.0,0.00019593,2]
[315084035,1708805240388,-500.0,0.00019593,2]
[315084036,1708805240409,-500.0,0.00019593,2]
[315084037,1708805240430,-500.0,0.00019593,2]
[315084038,1708805240454,-500.0,0.00019593,2]
[315084039,1708805240475,-500.0,0.00019593,2]
[315084040,1708805240496,-500.0,0.00019593,2]
[315084041,1708805240517,-500.0,0.00019593,2]
[315084042,1708805240539,-500.0,0.00019593,2]
[315084043,1708805240561,-500.0,0.00019593,2]
[315084044,1708805240582,-500.0,0.00019593,2]
[315084045,1708805240603,-500.0,0.00019593,2]
[315084046,1708805240625,-467.52958558,0.00019593,2]
[315084047,1708805240646,-500.0,0.00019593,2]
[315084048,1708805240669,-500.0,0.00019593,2]
[315084049,1708805240692,-500.0,0.00019593,2]
[315084050,1708805240714,-500.0,0.00019593,2]
[315084051,1708805240735,-500.0,0.00019593,2]
[315084052,1708805240757,-500.0,0.00019593,2]
[315084053,1708805240779,-500.0,0.00019593,2]
[315084054,1708805240801,-500.0,0.00019593,2]
[315084055,1708805240823,-500.0,0.00019593,2]
[315084056,1708805240851,-500.0,0.00019593,2]
[315084057,1708805240874,-500.0,0.00019593,2]
[315084058,1708805240898,-207.3420127,0.00019593,2]
[315084059,1708805246111,-166.666666,0.00019178,2]
[315084060,1708805246133,-273.310874,0.00019309,2]
[315084061,1708805252190,-226.689126,0.00019309,2]
[315084062,1708805252222,-1101.74,0.00019319,2]
[315084063,1708805252248,-502.06249801,0.00019319,2]
[315084064,1708805252274,-500.0,0.0001932,2]
[315084065,1708805252301,-12342.64,0.00019584,3]
[315084066,1708805252327,-292.6579873,0.00019593,2]
[315084067,1708805252354,-500.0,0.00019593,2]
[315084068,1708805252382,-500.0,0.00019593,2]
[315084069,1708805252408,-500.0,0.00019593,2]
[315084070,1708805252453,-500.0,0.00019593,2]
[315084071,1708805252479,-500.0,0.00019593,2]
[315084072,1708805252506,-500.0,0.00019593,2]
[315084073,1708805252532,-500.0,0.00019593,2]
[315084074,1708805252558,-500.0,0.00019593,2]